bitfinex-derivatives/quotes_ETHF0:USTF0_20250114
["timestamp","ask_amount","ask_price","bid_price","bid_amount"]
[1736887383014,0.454,3214.0,3213.4,3.98613]
[1736887383308,0.76528,3214.0,3213.9,0.31128]
[1736887383508,0.454,3214.0,3213.5,0.77831]
[1736887383708,0.31129,3213.9,3213.8,0.31129]
[1736887383901,0.454,3214.0,3213.9,0.31128]
[1736887384102,0.31128,3213.9,3213.5,6.43414251]
[1736887384303,0.31128,3213.9,3213.8,0.31129]
[1736887385203,0.31129,3213.8,3213.7,0.3113]
[1736887385405,0.31129,3213.8,3213.0,0.4523]
[1736887385406,1.08953,3213.8,3213.2,0.31134]
[1736887385602,3.2078,3213.6,3213.0,0.4523]
[1736887385798,3.2078,3213.6,3212.5,3.2078]
[1736887385799,0.3114,3212.7,3212.5,3.2078]
[1736887386006,0.3114,3212.8,3212.6,0.31141]
[1736887386207,0.484,3212.7,3212.5,3.51921]
[1736887386408,0.7954,3212.7,3212.5,3.51921]
[1736887387011,0.7954,3212.7,3212.6,0.31141]
[1736887387012,0.484,3212.7,3212.6,0.31141]
[1736887388610,0.484,3212.7,3212.5,3.2078]
[1736887388611,0.9561,3213.0,3212.5,3.2078]
[1736887388812,1.26747,3213.0,3212.8,0.31138]
[1736887390213,0.31138,3212.9,3212.7,0.3114]
[1736887390613,1.26747,3213.0,3212.8,0.31138]
[1736887391312,0.4819,3213.1,3212.6,2.44803251]
[1736887391513,0.4819,3213.1,3213.0,0.31137]
[1736887391716,3.2078,3213.2,3213.1,0.31136]
[1736887391919,3.2078,3213.2,3213.1,41.11136]
[1736887392818,1.24563,3213.4,3213.1,40.8]
[1736887393014,1.24563,3213.4,3213.2,0.31135]
[1736887393213,0.31135,3213.2,3213.1,40.8]
[1736887393424,0.3114,3212.8,3212.6,3.51921]
[1736887393717,1.4302,3212.7,3212.6,3.2078]
[1736887393916,1.7416,3212.7,3212.6,44.0078]
[1736887395015,1.7416,3212.7,3212.6,40.8]
[1736887395214,5.30155704,3212.7,3212.6,40.8]
[1736887399823,4.52875704,3212.7,3212.6,40.8]
[1736887400021,0.3114,3212.7,3212.6,41.1114]
[1736887400215,1.2782,3212.7,3212.6,40.8]
[1736887400421,4.75713294,3212.7,3212.6,40.8]
[1736887402727,4.44573294,3212.7,3212.6,41.11141]
[1736887403226,3.2078,3213.0,3212.6,40.8]
[1736887403424,3.51918,3213.0,3212.9,0.31138]
[1736887403625,0.4822,3213.1,3213.0,0.31137]
[1736887403924,2.44803251,3213.9,3213.0,0.31137]
[1736887403925,0.481,3213.4,3213.3,0.31134]
[1736887404432,0.4636,3213.6,3213.0,3.22646251]
[1736887404433,3.91077568,3213.6,3213.1,0.4854]
[1736887404631,0.4636,3213.6,3213.5,0.31132]
[1736887405725,0.4636,3213.6,3213.3,5.65583251]
[1736887405726,0.3113,3213.7,3213.6,0.31131]
[1736887405926,0.9481,3213.8,3213.7,0.3113]
[1736887406323,4.84288948,3213.8,3213.7,0.3113]
[1736887407526,4.53159948,3213.8,3213.7,0.3113]
[1736887407726,4.84288948,3213.8,3213.7,0.3113]
[1736887407919,4.84288948,3213.8,3213.4,0.4688]
[1736887408120,4.84288948,3213.8,3213.7,0.3113]
[1736887408121,4.53159948,3213.8,3213.7,0.3113]
[1736887408426,4.53159948,3213.8,3213.4,0.4688]
[1736887408427,0.4636,3213.9,3213.6,2.44803251]
[1736887408633,0.4636,3213.9,3213.8,0.31129]
[1736887410418,0.4621,3214.2,3214.1,0.31126]
[1736887410819,3.80673155,3214.2,3214.1,0.31126]
[1736887411126,3.34463155,3214.2,3214.1,0.31126]
[1736887412125,0.4903,3214.6,3214.1,3.51906]
[1736887412424,0.4903,3214.6,3213.9,43.24803251]
[1736887412425,0.31117,3215.1,3214.5,5.65583251]
[1736887412624,1.4114,3215.2,3215.1,0.31117]
[1736887412823,4.73640728,3215.2,3215.0,0.31117]
[1736887413022,1.4114,3215.2,3215.0,0.31117]
[1736887413321,1.72256,3215.2,3215.0,0.31117]
[1736887413926,0.31117,3215.1,3214.9,0.31118]
[1736887414622,0.31118,3215.0,3214.8,0.31119]
[1736887414827,3.5175319,3215.0,3214.6,0.4542]
[1736887415027,0.31118,3215.0,3214.6,0.4542]
[1736887415329,3.8287219,3214.9,3214.6,0.76541]
[1736887415622,3.8287219,3214.9,3214.6,0.4542]
[1736887415827,0.31119,3214.9,3214.6,0.76541]
[1736887416030,3.43833356,3214.8,3214.6,0.76541]
[1736887417634,3.43833356,3214.8,3214.6,0.4542]
[1736887417831,0.31119,3214.9,3214.6,0.76541]
[1736887418134,3.35716192,3215.1,3214.8,2.44803251]
[1736887418432,1.72256,3215.2,3214.9,0.31118]
[1736887418621,1.4114,3215.2,3214.8,2.44803251]
[1736887418928,1.4114,3215.2,3214.8,0.31119]
[1736887419324,0.31117,3215.1,3214.8,0.31119]
[1736887419631,3.2078,3215.9,3214.9,3.2078]
[1736887419833,0.31112,3215.6,3215.3,3.51895]
[1736887420025,0.4922,3215.7,3214.9,0.4773]
[1736887420026,4.06689843,3215.7,3214.9,0.4773]
[1736887420231,0.31116,3215.2,3215.0,40.8]
[1736887420430,0.4809,3215.1,3215.0,41.11118]
[1736887420631,0.4809,3215.1,3215.0,0.31118]
[1736887421527,3.99982,3215.6,3215.3,0.31114]
[1736887421733,0.31114,3215.5,3215.2,0.31115]
[1736887421927,3.82527237,3215.5,3215.2,0.31115]
[1736887422330,3.82526237,3215.5,3215.2,0.31115]
[1736887423036,3.51413237,3215.5,3215.2,0.31115]
[1736887423234,3.82526237,3215.5,3215.2,0.31115]
[1736887423533,0.31114,3215.4,3215.2,0.31115]
[1736887424531,0.31117,3215.2,3214.8,3.2078]
[1736887424725,3.60178579,3215.3,3214.8,3.51899]
[1736887424930,0.31118,3215.0,3214.8,3.51899]
[1736887425233,0.31118,3215.0,3214.8,0.31119]
[1736887425428,0.4798,3215.0,3214.9,0.31119]
[1736887425735,0.4869,3215.1,3215.0,0.31118]
[1736887425923,0.9311,3215.5,3215.4,0.31114]
[1736887426122,0.9311,3215.5,3215.3,0.31114]
[1736887426331,4.52707084,3215.5,3215.3,0.31114]
[1736887427138,4.21594084,3215.5,3214.9,3.2078]
[1736887427337,0.31116,3215.3,3215.0,0.31117]
[1736887427725,0.31116,3215.3,3214.9,3.2078]
[1736887428030,0.31116,3215.3,3215.0,0.31118]
[1736887428232,4.21594084,3215.5,3214.9,3.2078]
[1736887428425,0.31118,3215.0,3214.9,3.2078]
[1736887428830,3.57876922,3215.0,3214.9,3.2078]
[1736887429133,3.26758922,3215.0,3214.9,3.51899]
[1736887429535,3.26758922,3215.1,3215.0,0.31118]
[1736887429834,0.31118,3215.0,3214.9,3.2078]
[1736887430235,3.82379774,3215.0,3214.9,3.2078]
[1736887430432,3.82379774,3215.0,3214.8,0.31119]
[1736887430737,0.4991,3214.9,3214.8,0.3112]
[1736887431842,1.27639,3214.9,3214.7,0.3112]
[1736887432036,0.4739,3214.8,3214.7,0.3112]
[1736887432238,3.2078,3215.6,3214.7,40.8]
[1736887432538,0.4661,3215.5,3215.4,0.31113]
[1736887432842,3.37275192,3215.5,3215.4,0.31113]
[1736887433437,2.90665192,3215.5,3215.4,0.31113]
[1736887433740,0.3111,3215.8,3215.6,0.31111]
[1736887433937,0.3111,3215.8,3215.3,5.65583251]
[1736887434142,0.3111,3215.8,3215.7,0.31111]
[1736887434548,0.94,3215.9,3215.5,0.31112]
[1736887434549,0.31112,3215.6,3215.5,0.31112]
[1736887435551,0.31112,3215.6,3215.3,3.2078]
[1736887435552,0.31111,3215.7,3215.6,0.31112]
[1736887435949,3.80200522,3215.7,3215.6,0.31112]
[1736887436247,3.49089522,3215.7,3215.3,3.2078]
[1736887436452,0.31112,3215.6,3215.5,0.31112]
[1736887436654,0.31113,3215.5,3215.4,0.31113]
[1736887437152,0.31112,3215.6,3215.5,0.31112]
[1736887438949,3.47082645,3215.8,3215.3,3.2078]
[1736887439149,3.78193645,3215.8,3215.7,0.31111]
[1736887439543,3.47082645,3215.8,3215.7,0.31111]
[1736887440242,3.78192645,3215.8,3215.7,0.31111]
[1736887440449,3.47082645,3215.8,3215.7,0.31111]
[1736887440645,0.94,3215.9,3215.8,0.3111]
[1736887441247,0.4661,3216.1,3216.0,0.31108]
[1736887442156,0.77717,3216.1,3216.0,0.31108]
[1736887442354,0.4661,3216.1,3215.6,2.44803251]
[1736887442650,0.77718,3216.1,3216.0,0.31108]
[1736887442850,0.4661,3216.1,3216.0,0.31108]
[1736887443047,0.4661,3216.1,3216.0,41.11108]
[1736887443447,0.77717,3216.1,3216.0,41.11108]
[1736887443651,0.4661,3216.1,3216.0,41.11108]
[1736887445252,0.4661,3216.1,3216.0,0.31108]
[1736887445451,0.77717,3216.1,3215.6,2.44803251]
[1736887445654,0.77717,3216.1,3216.0,0.31108]
[1736887445655,0.4661,3216.1,3216.0,0.31108]
[1736887446459,0.77717,3216.1,3216.0,0.31108]
[1736887446749,0.4661,3216.1,3215.7,40.8]
[1736887446956,0.77717,3216.1,3215.8,0.3111]
[1736887447160,0.31108,3216.0,3215.8,0.3111]
[1736887447450,0.4661,3216.1,3215.5,0.9873]
[1736887447451,0.4805,3215.9,3215.5,0.9873]
[1736887447650,0.31113,3215.5,3215.4,0.31114]
[1736887448050,0.31114,3215.4,3215.3,3.51894]
[1736887448247,0.77644,3215.4,3215.3,0.31114]
[1736887448545,4.14099819,3215.4,3215.3,0.31114]
[1736887448751,4.59229819,3215.4,3215.3,0.31114]
[1736887448945,4.28115819,3215.4,3215.0,2.44803251]
[1736887449150,4.28115819,3215.4,3214.8,3.2078]
[1736887449350,0.31116,3215.2,3215.1,0.31116]
[1736887449557,0.31117,3215.1,3214.9,0.31118]
[1736887449953,0.31117,3215.1,3215.0,0.31118]
[1736887450358,0.31115,3215.3,3215.1,0.31116]
[1736887450652,3.2078,3215.8,3215.1,0.77792]
[1736887450858,3.2078,3215.8,3215.6,0.31111]
[1736887450859,3.51891,3215.8,3215.6,0.31111]
[1736887451158,6.94282343,3215.8,3215.6,0.31111]
[1736887451657,0.31112,3215.7,3215.6,0.31112]
[1736887451855,0.31112,3215.7,3215.5,0.31112]
[1736887452051,6.63171343,3215.8,3215.4,0.31113]
[1736887452256,3.42391343,3215.8,3215.7,5.65583251]
[1736887452453,0.77293,3216.6,3216.3,0.31104]
[1736887452653,0.77293,3216.6,3216.5,2.44803251]
[1736887452949,0.77293,3216.6,3216.5,40.8]
[1736887452950,0.4619,3216.6,3216.5,40.8]
[1736887453153,0.4619,3216.6,3216.2,2.44803251]
[1736887453349,0.31105,3216.3,3216.1,3.51887]
[1736887453750,3.33205344,3216.2,3216.1,0.31107]
[1736887453953,3.64311344,3216.2,3216.0,0.31107]
[1736887454154,4.14181344,3216.2,3216.0,0.31107]
[1736887454352,0.31108,3216.1,3215.8,0.31109]
[1736887454556,0.4967,3216.1,3215.6,5.65583251]
[1736887454754,3.26432198,3216.0,3215.9,0.31108]
[1736887455853,0.4967,3216.1,3215.7,40.8]
[1736887456256,0.80777,3216.1,3215.9,0.31108]
[1736887457065,0.4967,3216.1,3215.9,0.31108]
[1736887457567,0.4967,3216.1,3216.0,0.31108]
[1736887459162,0.80777,3216.1,3215.9,0.31108]
[1736887459463,0.4967,3216.1,3216.0,0.31108]
[1736887459768,0.4967,3216.1,3215.7,2.44803251]
[1736887460066,0.4967,3216.1,3216.0,0.31108]
[1736887461658,0.4967,3216.1,3215.7,2.44803251]
[1736887461867,0.31108,3216.0,3215.8,0.31109]
[1736887462064,0.4829,3215.9,3215.8,0.31109]
[1736887465365,3.92139767,3215.9,3215.8,0.31109]
[1736887468867,3.43849767,3215.9,3215.8,0.31109]
[1736887469565,0.4967,3216.1,3216.0,0.31108]
[1736887469772,0.4967,3216.1,3216.0,41.11108]
[1736887470761,0.4967,3216.1,3215.7,0.31111]
[1736887470762,0.31108,3216.0,3215.7,0.31111]
[1736887470964,3.88338751,3216.1,3215.6,0.77778]
[1736887471164,3.88338751,3216.1,3216.0,0.31108]
[1736887471165,0.4967,3216.1,3216.0,0.31108]
[1736887471774,3.7065,3216.2,3216.1,0.31107]
[1736887471976,3.2078,3216.2,3216.1,0.31107]
[1736887473965,3.2078,3216.2,3216.1,2.75910251]
[1736887475074,3.2078,3216.2,3216.1,0.31107]
[1736887475276,6.6939129,3216.2,3216.1,0.31107]
[1736887475669,7.0049729,3216.2,3216.1,0.31107]
[1736887475969,6.6939129,3216.2,3216.1,0.31107]
[1736887476271,3.2078,3216.2,3216.1,0.31107]
[1736887476580,3.2078,3216.2,3216.1,2.75910251]
[1736887477076,0.4554,3216.4,3216.3,0.31105]
[1736887479179,0.4834,3216.6,3216.5,0.31103]
[1736887479475,3.7848015,3216.6,3216.5,0.31103]
[1736887480977,3.3014015,3216.6,3216.5,0.31103]
[1736887481172,0.4859,3216.8,3216.7,0.31101]
[1736887481977,0.7969,3216.8,3216.7,0.31101]
[1736887482278,0.4859,3216.8,3216.7,2.75904251]
[1736887482474,0.9615,3216.9,3216.8,0.311]
[1736887483378,1.27249,3216.9,3216.8,0.311]
[1736887484280,0.31101,3216.7,3216.6,0.31101]
[1736887484482,0.31103,3216.5,3216.4,3.51883]
[1736887484676,0.76622,3216.6,3216.5,0.31103]
[1736887484877,0.4552,3216.6,3216.5,0.31103]
[1736887485276,1.2725,3216.9,3216.8,0.311]
[1736887485581,0.31101,3216.7,3216.6,0.31102]
[1736887485783,3.24180553,3216.8,3216.7,0.31101]
[1736887485980,1.2725,3216.9,3216.7,0.31101]
[1736887486380,0.311,3216.8,3216.7,0.31101]
[1736887487079,1.2725,3216.9,3216.7,0.31101]
[1736887487873,1.2725,3216.9,3216.8,0.311]
[1736887488075,0.9615,3216.9,3216.4,5.65583251]
[1736887488275,0.9615,3216.9,3216.8,0.311]
[1736887490176,0.4552,3217.2,3216.7,2.94043251]
[1736887490377,0.4552,3217.2,3217.1,0.31097]
[1736887490879,0.76617,3217.2,3217.0,0.31098]
[1736887491184,0.31097,3217.1,3217.0,0.31098]
[1736887492076,0.31097,3217.1,3216.8,40.8]
[1736887492279,3.81590047,3217.2,3216.4,5.65583251]
[1736887492582,0.311,3216.9,3216.4,5.65583251]
[1736887492784,0.4898,3216.8,3216.7,0.311]
[1736887494277,0.4898,3216.8,3216.1,0.77767]
[1736887494481,0.31103,3216.6,3216.4,0.31104]
[1736887495172,0.957,3216.7,3216.2,2.44803251]
[1736887495173,1.26802,3216.7,3216.3,0.31105]
[1736887495379,0.957,3216.7,3216.3,0.77763]
[1736887495578,0.957,3216.7,3216.6,0.31102]
[1736887496282,1.26801,3216.7,3216.6,0.31102]
[1736887496479,0.957,3216.7,3216.6,0.31102]
[1736887497081,0.4898,3216.8,3216.7,0.31101]
[1736887497286,0.4898,3216.8,3216.3,4.48472]
[1736887497472,3.36460292,3216.7,3216.4,0.31103]
[1736887497682,3.36460292,3216.7,3216.0,0.4838]
[1736887497882,0.31105,3216.4,3216.2,0.31105]
[1736887498085,0.4553,3216.3,3216.2,0.31105]
[1736887498281,0.9375,3216.3,3216.2,41.11105]
[1736887498779,0.9375,3216.3,3216.2,41.11106]
[1736887498780,1.24855,3216.3,3216.2,41.11106]
[1736887498985,1.24855,3216.3,3216.2,40.8]
[1736887499984,0.9375,3216.3,3216.2,41.11106]
[1736887500979,0.9375,3216.3,3216.2,43.55909251]
[1736887501785,0.4898,3216.8,3216.2,43.24803251]
[1736887501985,0.9338,3216.7,3216.6,0.31102]
[1736887503086,1.24481,3216.7,3216.5,0.31102]
[1736887503288,0.9338,3216.7,3216.4,3.2078]
[1736887503487,0.9338,3216.7,3216.4,0.31104]
[1736887503488,0.31103,3216.6,3216.4,0.31104]
[1736887503688,3.31101317,3216.6,3216.2,40.8]
[1736887503889,0.31105,3216.3,3216.2,40.8]
[1736887504481,0.31106,3216.2,3216.0,0.31107]
[1736887504687,0.4811,3216.1,3216.0,0.31107]
[1736887504892,0.4811,3216.1,3216.0,41.11107]
[1736887505698,0.4811,3216.1,3216.0,0.31107]
[1736887505983,0.4811,3216.1,3216.0,0.31108]
[1736887506188,0.4811,3216.1,3216.0,41.11108]
[1736887506485,0.4811,3216.1,3216.0,40.8]
[1736887506692,0.4811,3216.1,3215.6,4.1221]
[1736887506693,0.31109,3215.9,3215.7,0.3111]
[1736887506885,3.84351659,3216.1,3215.6,3.2078]
[1736887507191,3.4759801,3215.8,3215.7,41.11111]
[1736887507388,0.9708,3216.2,3216.1,0.31107]
[1736887507895,4.51571,3216.8,3216.6,0.31102]
[1736887508097,0.4651,3216.7,3216.6,0.31102]
[1736887509896,3.2078,3217.2,3216.4,5.65583251]
[1736887510097,0.4651,3217.1,3217.0,0.31098]
[1736887510301,4.00869038,3217.1,3217.0,0.31098]
[1736887511191,3.54359038,3217.1,3217.0,0.31098]
[1736887512495,3.54359038,3217.1,3216.5,1.7988]
[1736887512701,0.31102,3216.7,3216.5,0.31103]
[1736887512997,1.4152,3216.6,3216.5,0.31103]
[1736887513202,5.09337006,3216.6,3216.5,0.31103]
[1736887513396,1.4152,3216.6,3216.4,5.65583251]
[1736887513588,1.4152,3216.6,3216.5,0.31103]
[1736887514000,0.31099,3217.0,3216.4,5.65583251]
[1736887514197,0.4708,3216.9,3216.8,0.311]
[1736887514502,4.01887615,3216.9,3216.8,0.311]
[1736887515297,0.9858,3217.1,3216.7,2.44803251]
[1736887515596,0.9858,3217.1,3216.8,0.9663]
[1736887515796,0.4708,3217.0,3216.4,5.65583251]
[1736887516103,0.4708,3217.0,3216.7,0.31101]
[1736887516104,0.311,3216.9,3216.7,0.31101]
[1736887516891,0.4708,3217.0,3216.4,3.2078]
[1736887517096,0.31102,3216.7,3216.5,0.31103]
[1736887517400,3.4627781,3216.6,3216.4,3.2078]
[1736887517595,3.4627781,3216.6,3216.5,0.31103]
[1736887517799,3.4627781,3216.7,3216.6,0.31102]
[1736887517999,0.4708,3217.0,3216.9,0.31099]
[1736887519506,0.9858,3217.1,3217.0,0.31098]
[1736887519907,0.493,3217.1,3217.0,0.31098]
[1736887521001,0.92877371,3217.6,3216.9,0.77749]
[1736887521303,0.4698,3217.8,3217.7,0.31092]
[1736887521492,4.07915605,3218.7,3217.7,5.65583251]
[1736887521696,3.58266414,3218.4,3218.3,2.44803251]
[1736887521901,0.31085,3218.4,3218.3,2.44803251]
[1736887522107,0.4581,3218.5,3218.0,2.44803251]
[1736887522405,0.4868,3218.3,3218.0,2.75891251]
[1736887522607,0.4868,3218.3,3218.0,2.44803251]
[1736887522608,0.4829,3218.2,3218.0,2.44803251]
[1736887522803,0.4829,3218.2,3218.0,2.75891251]
[1736887523002,0.79377,3218.2,3218.0,2.44803251]
[1736887523200,0.31088,3218.1,3218.0,2.44803251]
[1736887523805,0.4829,3218.2,3218.0,2.44803251]
[1736887524003,0.79377,3218.2,3218.0,2.75892251]
[1736887524199,0.4829,3218.2,3218.1,0.31088]
[1736887524402,0.4868,3218.3,3218.1,0.31088]
[1736887524608,0.941,3218.5,3218.0,2.44803251]
[1736887524905,0.941,3218.5,3218.4,0.31085]
[1736887526006,0.941,3218.5,3218.3,2.75889251]
[1736887526203,0.941,3218.5,3218.3,2.44803251]
[1736887526408,0.31085,3218.4,3218.1,0.31087]
[1736887526704,0.4561,3218.3,3218.0,2.44803251]
[1736887526907,0.4561,3218.3,3218.2,0.31087]
[1736887527504,0.4561,3218.3,3218.2,3.51867]
[1736887527909,0.941,3218.5,3218.2,3.2078]
[1736887528105,0.4829,3218.5,3218.4,0.31085]
[1736887528505,0.4561,3218.6,3218.3,2.44803251]
[1736887528712,0.4841,3218.9,3218.8,0.31081]
[1736887529208,4.09056214,3218.9,3218.7,2.44803251]
[1736887529411,4.09056214,3218.9,3218.8,0.31081]
[1736887529804,3.6941,3219.4,3218.7,2.44803251]
[1736887530010,4.1782,3219.4,3219.2,2.75880251]
[1736887530304,4.1782,3219.4,3219.3,0.31076]
[1736887530508,3.2078,3219.4,3219.3,0.31076]
[1736887531313,0.4536,3219.6,3219.4,0.31075]
[1736887531517,3.2078,3219.9,3219.6,0.31073]
[1736887531714,3.2078,3219.9,3219.8,2.75874251]
[1736887533909,0.4841,3220.0,3219.8,2.75874251]
[1736887534414,3.53573814,3219.9,3219.5,2.75876251]
[1736887534612,0.31072,3219.7,3219.5,2.75876251]
[1736887535008,0.4929,3219.8,3219.5,2.44803251]
[1736887535319,0.31073,3219.7,3219.5,2.44803251]
[1736887535616,0.31073,3219.6,3219.5,2.44803251]
[1736887536417,0.31073,3219.7,3219.5,2.44803251]
[1736887536614,0.4929,3219.8,3219.5,2.44803251]
[1736887536914,0.31073,3219.6,3219.5,2.44803251]
[1736887537417,3.29324711,3219.7,3219.5,2.44803251]
[1736887537613,3.60397711,3219.7,3219.5,2.44803251]
[1736887538211,3.29324711,3219.7,3219.5,2.44803251]
[1736887538408,3.2078,3219.6,3218.8,3.2078]
[1736887538616,3.2078,3219.6,3218.6,2.44803251]
[1736887538617,2.44803251,3219.5,3218.6,2.44803251]
[1736887538814,2.44803251,3219.5,3218.4,3.2078]
[1736887538815,3.60028355,3219.5,3218.9,2.44803251]
[1736887539018,0.31075,3219.4,3219.2,2.75880251]
[1736887539313,3.49152573,3219.3,3218.7,2.44803251]
[1736887539511,3.96502573,3219.3,3218.5,2.44803251]
[1736887539814,3.96502573,3219.3,3218.2,40.8]
[1736887539815,3.2078,3219.1,3218.2,2.44803251]
[1736887540017,0.31085,3218.4,3218.2,2.44803251]
[1736887540218,0.77701,3218.9,3218.3,40.8]
[1736887540423,0.79932,3218.7,3218.5,0.31083]
[1736887540721,4.03653183,3218.7,3218.5,2.44803251]
[1736887540917,4.03653183,3218.7,3218.5,2.75887251]
[1736887540918,0.4737,3218.6,3218.5,2.75887251]
[1736887541120,0.4737,3218.6,3218.5,2.44803251]
[1736887541422,0.78453,3218.6,3218.5,2.44803251]
[1736887541925,0.4737,3218.6,3218.5,2.75887251]
[1736887543824,0.78453,3218.6,3218.4,0.31084]
[1736887544020,0.31085,3218.4,3218.3,40.8]
[1736887544525,3.67762969,3218.4,3218.3,40.8]
[1736887546717,3.36677969,3218.4,3218.3,40.8]
[1736887547120,3.55666877,3218.5,3218.3,40.8]
[1736887547418,3.6815,3218.6,3218.4,2.75887251]
[1736887547618,3.6815,3218.6,3218.4,2.44803251]
[1736887547818,3.6815,3218.6,3218.5,0.31084]
[1736887548018,0.4737,3218.6,3218.5,0.31084]
[1736887548726,0.4737,3218.6,3218.4,2.75887251]
[1736887550020,0.4737,3218.6,3218.5,0.31084]
[1736887550321,0.4737,3218.6,3218.4,5.65583251]
[1736887550522,0.31084,3218.5,3218.3,40.8]
[1736887550720,0.4942,3218.4,3218.3,40.8]
[1736887550921,4.40177861,3218.4,3218.3,40.8]
[1736887551425,4.09092861,3218.4,3218.0,3.2078]
[1736887551630,0.31088,3218.1,3218.0,3.2078]
[1736887551920,0.31088,3218.1,3218.0,44.0078]
[1736887552129,3.87331167,3218.1,3218.0,40.8]
[1736887553028,3.56243167,3218.1,3217.3,3.2078]
[1736887553226,0.3109,3217.9,3217.6,0.31092]
[1736887553427,0.4977,3217.8,3217.7,0.31091]
[1736887553621,0.4977,3217.8,3217.7,41.11091]
[1736887553622,3.35832783,3217.8,3217.7,41.11091]
[1736887554022,0.4722,3218.0,3217.9,0.3109]
[1736887554625,0.4977,3218.2,3218.1,0.31088]
[1736887554924,0.31088,3218.1,3217.9,0.31089]
[1736887555725,0.4977,3218.2,3217.7,40.8]
[1736887555933,0.31091,3217.8,3217.7,40.8]
[1736887556830,4.20383077,3217.8,3217.7,40.8]
[1736887557329,3.89292077,3217.8,3217.5,2.75896251]
[1736887557527,0.31093,3217.6,3217.4,0.31094]
[1736887557832,4.20383077,3217.8,3217.6,0.31092]
[1736887558130,3.89292077,3217.8,3217.5,40.8]
[1736887558326,4.20383077,3217.8,3217.6,0.31093]
[1736887558525,3.89292077,3217.8,3217.5,43.24803251]
[1736887558724,3.89292077,3217.8,3217.7,0.31092]
[1736887558926,3.89292077,3217.8,3217.5,43.24803251]
[1736887559133,3.89292077,3217.8,3217.7,0.31092]
[1736887559331,3.89292077,3217.8,3217.5,43.24803251]
[1736887559532,0.31092,3217.7,3217.5,43.55896251]
[1736887559833,3.89292077,3217.8,3217.5,43.24803251]
[1736887560028,4.20383077,3217.8,3217.6,0.31092]
[1736887560224,3.89292077,3217.8,3217.5,43.24803251]
[1736887560422,0.4593,3217.9,3217.5,43.24803251]
[1736887560629,0.4593,3217.9,3217.8,0.31091]
[1736887560828,0.31093,3217.6,3217.5,40.8]
[1736887561035,3.24816567,3217.8,3217.5,41.11093]
[1736887561036,0.31092,3217.7,3217.5,41.11093]
[1736887561430,3.25302968,3217.6,3217.5,41.11093]
[1736887561631,3.56395968,3217.6,3217.5,40.8]
[1736887561829,4.05305968,3217.6,3217.5,40.8]
[1736887562037,3.74212968,3217.6,3217.5,40.8]
[1736887562235,3.74212968,3217.6,3217.5,41.11093]
[1736887562432,3.74212968,3217.6,3217.5,40.8]
[1736887562736,4.05305968,3217.6,3217.5,40.8]
[1736887563131,4.05305968,3217.6,3217.5,41.11093]
[1736887563733,4.05305968,3217.6,3217.5,40.8]
[1736887564332,3.74212968,3217.6,3217.5,41.11093]
[1736887564531,0.4593,3217.9,3217.5,40.8]
[1736887564737,0.4593,3217.9,3217.8,0.31091]
[1736887565835,0.4593,3217.9,3217.5,40.8]
[1736887565836,0.9509,3218.1,3217.7,2.44803251]
[1736887566140,3.2078,3218.4,3218.0,2.44803251]
[1736887566437,3.2078,3218.4,3218.3,0.31086]
[1736887566637,1.459,3218.6,3218.0,3.22524251]
[1736887566833,1.459,3218.6,3218.1,3.985]
[1736887567033,3.2078,3218.9,3218.3,2.44803251]
[1736887567233,3.2078,3218.9,3218.6,2.75886251]
[1736887567633,3.5186,3218.9,3218.6,2.75886251]
[1736887567834,3.5186,3218.9,3218.6,43.55886251]
[1736887568343,3.2078,3218.9,3218.6,40.8]
[1736887568635,3.82955177,3218.7,3218.6,40.8]
[1736887568840,3.82955177,3218.7,3218.6,41.11083]
[1736887569230,3.51873177,3218.7,3218.6,41.11083]
[1736887569432,0.31405561,3218.7,3218.6,40.8]
[1736887569632,0.31089,3218.1,3217.9,0.4917]
[1736887569834,0.31089,3218.1,3217.9,0.80259]
[1736887570033,0.31089,3218.0,3217.8,0.3109]
[1736887570244,0.31089,3218.0,3217.6,40.8]
[1736887570245,3.54392937,3218.0,3217.6,40.8]
[1736887570437,0.3109,3217.9,3217.6,40.8]
[1736887570635,3.54392937,3218.2,3217.7,2.44803251]
[1736887570835,0.31089,3218.0,3217.8,0.3109]
[1736887571035,3.54392937,3217.9,3217.8,0.3109]
[1736887571234,0.3109,3217.9,3217.7,2.75894251]
[1736887571440,0.31089,3218.0,3217.8,0.3109]
[1736887571641,3.57025232,3217.9,3217.7,2.44803251]
[1736887571831,4.34741232,3218.3,3217.7,2.44803251]
[1736887572036,0.77716,3218.3,3217.7,2.44803251]
[1736887572238,0.31089,3218.0,3217.8,0.3109]
[1736887572536,0.31089,3218.0,3217.7,2.44803251]
[1736887572537,3.39366194,3217.9,3217.7,2.44803251]
[1736887572741,3.39366194,3217.9,3217.8,0.31091]
[1736887572944,1.27645,3218.4,3218.2,0.31086]
[1736887573642,0.31087,3218.2,3217.9,3.2078]
[1736887573944,4.38752067,3218.3,3218.1,0.31088]
[1736887574242,4.38752067,3218.3,3217.9,3.2078]
[1736887574243,0.31087,3218.2,3218.0,0.31088]
[1736887574745,4.07666067,3218.3,3217.9,3.2078]
[1736887574939,4.38752067,3218.3,3218.1,0.31087]
[1736887575140,4.07666067,3218.3,3217.9,3.2078]
[1736887575343,0.31088,3218.1,3217.9,3.2078]
[1736887575541,4.07666067,3218.3,3217.7,2.44803251]
[1736887575734,0.31091,3217.8,3217.6,41.11092]
[1736887575936,0.3109,3217.9,3217.6,41.11092]
[1736887576340,3.2078,3218.1,3217.6,40.8]
[1736887576541,0.31089,3218.0,3217.7,0.31091]
[1736887576849,0.3109,3217.9,3217.7,0.31092]
[1736887577143,3.7952386,3218.0,3217.8,0.3109]
[1736887577346,3.7952386,3218.0,3217.6,40.8]